bitfinex-derivatives/quotes_ETHF0:USTF0_20250626
["timestamp","ask_amount","ask_price","bid_price","bid_amount"]
[1750911777454,0.80597,2480.1,2479.9,0.7198]
[1750911777759,0.80597,2480.1,2479.9,7.3678]
[1750911778267,0.80595,2480.2,2479.9,7.3678]
[1750911778657,0.806,2480.0,2479.9,6.648]
[1750911778959,0.80603,2480.0,2479.8,6.647]
[1750911779154,0.80604,2479.9,2479.8,6.647]
[1750911779359,2.1341,2480.2,2479.4,3.8924]
[1750911779565,0.6776,2479.8,2479.5,6.647]
[1750911779758,0.80611,2479.7,2479.4,3.8924]
[1750911779962,0.80611,2479.7,2479.6,6.647]
[1750911780461,0.80605,2479.9,2479.6,7.45312]
[1750911780649,0.80605,2479.9,2479.4,3.8924]
[1750911780650,2.7905,2480.2,2479.4,3.8924]
[1750911780961,0.8062,2479.5,2479.4,6.647]
[1750911781255,0.80615,2479.6,2479.4,6.647]
[1750911781458,0.80608,2479.8,2479.5,0.80614]
[1750911781650,0.80606,2479.9,2479.5,1.4297]
[1750911781850,0.80609,2479.8,2479.5,2.23585]
[1750911782962,0.80609,2479.8,2479.4,9.8548]
[1750911782963,0.80615,2479.6,2479.4,6.647]
[1750911783458,0.80615,2479.6,2479.4,7.4532]
[1750911783659,0.80615,2479.6,2479.3,0.80621]
[1750911783964,0.80615,2479.6,2479.4,6.646]
[1750911784257,0.80618,2479.5,2479.4,6.646]
[1750911785361,0.80616,2479.6,2479.4,6.646]
[1750911786061,3.2078,2480.0,2479.4,9.8538]
[1750911786363,0.80602,2480.0,2479.8,0.80606]
[1750911786554,0.80599,2480.1,2479.5,1.9695]
[1750911786854,0.80599,2480.1,2479.7,3.2078]
[1750911787058,0.80599,2480.1,2479.9,0.80604]
[1750911787559,2.16555,2480.2,2479.9,0.80604]
[1750911787755,0.80597,2480.1,2479.8,8.76635]
[1750911788458,2.16556,2480.2,2479.9,0.80603]
[1750911788864,0.80597,2480.1,2479.9,0.80603]
[1750911789954,5.24479614,2480.5,2479.8,7.9603]
[1750911789955,3.2078,2480.6,2480.0,0.80599]
[1750911790156,0.8059,2480.4,2480.1,0.80597]
[1750911790754,0.80591,2480.3,2480.1,0.80597]
[1750911791155,0.80598,2480.1,2479.9,1.50592]
[1750911791364,0.806,2480.0,2479.9,0.6999]
[1750911791662,0.80605,2479.9,2479.5,0.6552]
[1750911791859,8.45259614,2480.3,2479.8,0.80605]
[1750911792163,0.80601,2480.0,2479.8,0.80605]
[1750911792566,0.80604,2479.9,2479.7,0.80609]
[1750911792769,0.80602,2480.0,2479.7,0.80609]
[1750911793057,0.80604,2479.9,2479.6,8.89271]
[1750911793466,0.80602,2480.0,2479.7,0.80608]
[1750911793665,0.80604,2479.9,2479.8,6.645]
[1750911794466,0.80602,2480.0,2479.8,6.645]
[1750911794667,1.4308,2480.2,2479.8,6.645]
[1750911794868,1.16353778,2480.1,2479.8,6.645]
[1750911795064,1.4308,2480.2,2479.8,6.645]
[1750911795259,0.80604,2479.9,2479.8,6.645]
[1750911795470,3.2078,2480.0,2479.7,6.665]
[1750911795666,1.47777,2479.8,2479.7,6.665]
[1750911796167,2.64280668,2479.8,2479.7,6.665]
[1750911796369,0.80613,2479.6,2479.5,6.665]
[1750911797162,1.97102146,2479.6,2479.5,6.665]
[1750911797563,0.80623,2479.4,2479.2,6.665]
[1750911797968,0.80619,2479.5,2479.2,7.47125]
[1750911798169,0.8062,2479.4,2479.2,7.47125]
[1750911798771,1.49288,2479.5,2479.2,7.47125]
[1750911799273,1.16845396,2479.4,2479.2,7.47125]
[1750911799569,1.49288,2479.5,2479.2,7.47125]
[1750911799772,1.16882615,2479.4,2479.2,6.665]
[1750911799974,0.6867,2479.5,2479.4,0.8062]
[1750911800163,1.16882346,2479.5,2479.4,0.41303989]
[1750911801467,1.16882346,2479.5,2479.2,6.665]
[1750911801667,2.69515346,2479.4,2479.2,7.47126]
[1750911801874,1.16882346,2479.3,2479.2,7.47126]
[1750911802576,1.16882346,2479.3,2479.2,6.665]
[1750911803068,1.16882346,2479.3,2479.2,0.80626]
[1750911803377,1.97507346,2479.3,2479.1,54.5057]
[1750911803580,1.16882346,2479.2,2479.1,54.5057]
[1750911803772,1.16882346,2479.2,2478.9,1.31]
[1750911803773,1.97508346,2479.2,2478.9,2.11634]
[1750911803972,1.97512346,2479.1,2479.0,6.666]
[1750911806074,9.37662346,2479.1,2478.5,6.666]
[1750911806281,3.2078,2478.8,2478.6,2.57822645]
[1750911806474,3.2078,2478.8,2478.7,0.80643]
[1750911806673,4.37321051,2478.8,2478.7,0.80643]
[1750911807181,5.17962051,2478.8,2478.6,2.7434]
[1750911807476,1.16541051,2478.7,2478.6,2.7434]
[1750911807677,1.16541051,2478.7,2478.6,9.4094]
[1750911807878,1.16541051,2478.7,2478.6,10.21586]
[1750911808182,4.01421,2478.8,2478.6,10.21586]
[1750911808692,0.80643,2478.7,2478.6,9.4094]
[1750911809191,4.01421,2478.8,2478.6,9.4094]
[1750911809390,0.80643,2478.7,2478.6,9.4094]
[1750911810489,1.97087386,2478.7,2478.6,7.3684]
[1750911811284,0.80643,2478.7,2478.6,7.3684]
[1750911811484,0.80643,2478.7,2478.6,6.666]
[1750911811691,1.52983,2478.7,2478.6,6.666]
[1750911811991,0.80652,2478.4,2478.3,10.566]
[1750911812992,0.80652,2478.4,2478.3,7.3582]
[1750911814195,0.80651,2478.5,2478.3,8.16474]
[1750911814394,0.80647,2478.6,2478.4,0.80652]
[1750911814589,1.52985,2478.7,2478.4,2.12601]
[1750911814793,3.2078,2478.8,2478.5,0.80648]
[1750911814985,0.80644,2478.7,2478.5,0.80648]
[1750911815290,4.01421,2478.8,2478.5,0.80648]
[1750911815491,0.80643,2478.7,2478.5,0.80648]
[1750911815882,0.80643,2478.7,2478.4,1.3195]
[1750911815883,3.2078,2478.8,2478.7,0.80643]
[1750911819497,3.2078,2478.8,2478.7,7.47443]
[1750911819891,4.01419,2478.8,2478.7,6.668]
[1750911820397,3.2078,2478.8,2478.7,7.47443]
[1750911820697,4.01419,2478.8,2478.7,7.47443]
[1750911820897,4.01419,2478.8,2478.7,6.668]
[1750911821299,0.80643,2478.7,2478.5,7.47447]
[1750911821502,0.80646,2478.6,2478.5,6.668]
[1750911821695,3.2078,2478.8,2478.5,7.47448]
[1750911821894,4.01421,2478.8,2478.5,7.47448]
[1750911822503,0.80643,2478.7,2478.5,7.47448]
[1750911823003,0.80646,2478.6,2478.5,6.668]
[1750911823201,0.80649,2478.5,2478.4,3.2078]
[1750911823604,0.80652,2478.4,2478.3,0.6912]
[1750911824400,0.80656,2478.3,2478.2,7.3577]
[1750911824596,2.028,2478.6,2477.7,51.71358599]
[1750911824597,3.2078,2478.5,2477.7,3.2078]
[1750911824799,1.5138,2478.2,2477.9,0.80667]
[1750911825299,0.80664,2478.1,2477.8,1.47041]
[1750911825901,0.80664,2478.1,2477.8,2.83611]
[1750911826102,0.80666,2478.0,2477.8,2.0294]
[1750911826605,0.80669,2477.9,2477.8,2.0294]
[1750911827598,0.80672,2477.8,2477.7,3.2078]
[1750911827797,0.8067,2477.9,2477.7,3.2078]
[1750911828305,3.915,2478.2,2477.7,3.2078]
[1750911828306,0.80672,2477.8,2477.7,3.2078]
[1750911828704,0.80667,2478.0,2477.7,4.01454]
[1750911829003,0.80669,2477.9,2477.7,3.2078]
[1750911829408,0.80667,2478.0,2477.7,4.01454]
[1750911830206,0.80666,2478.0,2477.7,4.01452]
[1750911831708,3.915,2478.2,2477.7,5.7875299]
[1750911831898,3.2078,2478.6,2478.1,2.5797299]
[1750911832100,0.80648,2478.6,2478.3,0.80654]
[1750911832304,1.16328637,2478.5,2478.3,0.80654]
[1750911832504,0.80648,2478.6,2478.3,0.80654]
[1750911832807,1.82646532,2478.5,2478.3,0.80654]
[1750911833007,0.6632,2478.5,2478.3,0.80654]
[1750911833600,1.97026377,2478.4,2478.2,6.646]
[1750911833903,1.50504,2478.4,2478.2,6.646]
[1750911834104,1.50505,2478.4,2478.2,6.646]
[1750911834301,1.1638743,2478.3,2478.1,0.8066]
[1750911834507,2.81404,2478.4,2478.1,0.8066]
[1750911834705,1.97052248,2478.3,2478.0,0.80663]
[1750911835008,2.5797299,2478.3,2477.9,1.47156]
[1750911835319,4.01444,2478.1,2477.9,7.45268]
[1750911836109,3.2078,2478.1,2477.9,7.45268]
[1750911836312,2.11561,2478.2,2477.9,7.45268]
[1750911837206,2.11562,2478.2,2477.9,7.45268]
[1750911837411,0.80663,2478.1,2477.9,7.45268]
[1750911839213,0.80661,2478.2,2477.9,7.45268]
[1750911839414,0.80657,2478.3,2478.0,0.80664]
[1750911839616,3.9063,2478.4,2478.0,0.80664]
[1750911839617,0.8066,2478.2,2478.0,0.80664]
[1750911840115,0.8066,2478.2,2477.9,10.0323999]
[1750911840311,0.80662,2478.1,2477.9,7.45267]
[1750911841318,0.80661,2478.2,2477.9,7.45267]
[1750911841720,0.80663,2478.1,2477.9,7.45267]
[1750911842021,0.80661,2478.2,2477.9,7.45268]
[1750911842219,0.80663,2478.1,2477.9,7.45268]
[1750911842424,0.80657,2478.3,2478.0,0.80665]
[1750911842617,1.16467682,2478.2,2478.0,0.80665]
[1750911842818,5.3354,2478.4,2477.9,7.45267]
[1750911843018,0.80661,2478.2,2477.9,7.45267]
[1750911844021,0.80661,2478.2,2478.0,0.80665]
[1750911844322,0.80657,2478.3,2478.1,0.80662]
[1750911844624,1.16471671,2478.2,2478.1,0.80662]
[1750911844824,1.16479094,2478.3,2478.1,0.8066]
[1750911845024,1.16479094,2478.2,2478.0,0.6818]
[1750911845215,4.71284,2478.4,2478.1,0.80662]
[1750911845411,1.16481392,2478.3,2477.8,3.2078]
[1750911845616,1.97141392,2478.2,2477.9,0.80666]
[1750911845817,3.9063,2478.4,2477.9,3.2615299]
[1750911846017,1.16511629,2478.3,2478.1,0.80661]
[1750911846316,1.16527032,2478.2,2478.1,4.0550499]
[1750911848325,0.80648,2478.6,2478.4,0.80652]
[1750911848520,1.16634349,2478.5,2478.4,0.80652]
[1750911848725,0.80654,2478.4,2478.2,8.80847]
[1750911848923,0.80654,2478.4,2478.3,0.6976]
[1750911849222,0.80656,2478.3,2478.2,6.646]
[1750911849425,0.80656,2478.3,2478.1,4.6831]
[1750911849426,1.97284784,2478.3,2478.1,4.6831]
[1750911849624,1.97284784,2478.3,2478.1,11.3291]
[1750911849625,1.16628784,2478.2,2478.1,11.3291]
[1750911850027,1.16628784,2478.2,2478.1,10.5225]
[1750911850225,3.2078,2478.3,2478.1,6.646]
[1750911850430,0.80662,2478.1,2477.8,2.94272]
[1750911850616,1.16725657,2478.0,2477.8,9.58872]
[1750911850824,0.80662,2478.1,2477.9,0.80668]
[1750911851022,1.1672746,2478.0,2477.9,0.80668]
[1750911852826,0.80651,2478.5,2478.2,0.80659]
[1750911853023,1.97452662,2478.4,2478.2,0.80659]
[1750911853224,1.16799662,2478.3,2478.2,0.80659]
[1750911853427,1.16799662,2478.3,2478.2,1.50519]
[1750911854328,1.16799662,2478.3,2478.2,3.55219]
[1750911861133,6.62e-06,2478.3,2478.2,8.55219]
[1750911861337,3.17928881,2479.1,2478.2,8.55219]
[1750911861338,0.80631,2479.1,2478.9,0.80636]
[1750911861532,0.80631,2479.1,2478.8,0.80637]
[1750911861838,0.80633,2479.0,2478.8,0.80637]
[1750911862037,1.52032,2479.1,2478.8,0.80637]
[1750911862638,0.80633,2479.0,2478.7,7.3874]
[1750911862833,0.80639,2478.8,2478.6,3.2078]
[1750911863033,3.2078,2478.9,2478.5,6.581]
[1750911863229,3.2078,2478.9,2478.6,0.80646]
[1750911863532,3.2078,2478.9,2478.5,6.581]
[1750911863842,2.24942,2478.8,2478.5,7.38749]
[1750911864141,0.80643,2478.7,2478.4,7.3875]
[1750911864334,1.48583,2478.7,2478.5,0.80649]
[1750911864845,1.48583,2478.7,2478.4,0.80651]
[1750911865144,0.6794,2478.7,2478.6,0.80646]
[1750911865335,1.48585,2478.7,2478.4,0.80651]
[1750911865739,0.80647,2478.6,2478.4,0.80651]
[1750911866241,1.48585,2478.7,2478.4,0.80651]
[1750911868043,1.48585,2478.7,2478.3,8.81794]
[1750911868342,1.48585,2478.7,2478.4,0.80652]
[1750911868743,0.80646,2478.6,2478.4,0.80652]
[1750911870142,0.80649,2478.5,2478.3,7.38654]
[1750911870344,0.80648,2478.6,2478.3,7.38654]
[1750911870643,0.80651,2478.5,2478.3,6.58]
[1750911870844,0.80651,2478.5,2478.3,7.38655]
[1750911872142,0.80651,2478.5,2478.3,0.80655]
[1750911872348,0.80648,2478.6,2478.3,0.80655]
[1750911872549,0.8065,2478.5,2478.3,0.80655]
[1750911873044,2.20278,2478.6,2478.3,0.80655]
[1750911873248,1.16145973,2478.5,2478.4,0.80652]
[1750911874649,1.16145973,2478.5,2478.2,7.2922]
[1750911874949,1.48585,2478.7,2478.5,0.80649]
[1750911875151,1.16171781,2478.6,2478.5,0.80649]
[1750911875346,1.96819781,2478.6,2478.4,0.80651]
[1750911875546,1.16171781,2478.5,2478.4,0.80651]
[1750911876049,1.16171781,2478.5,2478.4,0.80652]
[1750911876645,1.96820781,2478.5,2478.3,2.19983]
[1750911876839,0.80649,2478.5,2478.3,2.19983]
[1750911877044,0.80649,2478.5,2478.2,8.09877]
[1750911877352,0.80651,2478.5,2478.2,8.09877]
[1750911877549,0.80653,2478.4,2478.2,8.09877]
[1750911878245,0.80656,2478.3,2478.2,0.7122]
[1750911878449,0.80659,2478.2,2478.1,3.2078]
[1750911878652,1.52989,2478.2,2478.1,3.2078]
[1750911879152,1.52989,2478.2,2478.0,7.38664]
[1750911879353,0.80662,2478.1,2478.0,6.58]
[1750911879559,1.96880916,2478.1,2478.0,6.58]
[1750911882255,1.16218916,2478.1,2478.0,6.58]
[1750911882652,1.96880916,2478.1,2478.0,6.58]
[1750911884154,0.80667,2478.0,2477.8,4.0145]
[1750911884359,0.80667,2478.0,2477.7,6.581]
[1750911884360,0.80674,2477.8,2477.7,6.581]
[1750911884754,1.51924,2477.8,2477.7,6.581]
[1750911885356,4.5977,2478.0,2477.7,6.581]
[1750911885357,3.2078,2478.0,2477.7,6.581]
[1750911885556,0.7125,2478.1,2477.8,5.7875299]
[1750911885749,1.15581204,2478.0,2477.9,0.80669]
[1750911885945,3.9272,2478.4,2477.9,1.4005]
[1750911885946,3.2078,2478.4,2477.9,1.4005]
[1750911886150,1.51897,2478.6,2478.3,0.80656]
[1750911886354,1.15598558,2478.5,2478.4,0.80652]
[1750911886649,1.96248558,2478.5,2478.3,2.20704]
[1750911886847,1.15598558,2478.4,2478.3,2.20704]
[1750911887059,1.51898,2478.6,2478.4,0.80652]
[1750911887257,1.15605317,2478.5,2478.4,0.80652]
[1750911889462,1.15605317,2478.5,2478.3,2.20704]
[1750911889463,1.96255317,2478.5,2478.3,2.20704]
[1750911889760,1.15605317,2478.4,2478.3,2.20704]
[1750911890960,1.15617039,2478.5,2478.4,0.80652]
[1750911891158,1.15616813,2478.5,2478.4,0.80652]
[1750911893957,3.2078,2479.0,2478.4,5.7875299]
[1750911894153,1.15675187,2478.9,2478.8,3.3861099]
[1750911894560,1.15675187,2478.9,2478.8,0.80639]
[1750911895155,1.15675187,2478.9,2478.8,3.3861199]
[1750911896464,3.2078,2479.0,2478.9,0.80636]
[1750911896756,4.36449282,2479.0,2478.9,2.21856]
[1750911897363,4.36449282,2479.0,2478.9,1.4122]
[1750911897759,4.36449282,2479.0,2478.9,8.79056]
[1750911900859,4.36449282,2479.0,2478.6,3.9704299]
[1750911901063,1.50016,2478.9,2478.7,7.37841]
[1750911901468,0.6938,2478.9,2478.8,0.80639]
[1750911902059,1.50017,2478.9,2478.7,7.37841]
[1750911902259,1.50017,2478.9,2478.4,4.52]
[1750911902260,0.80644,2478.7,2478.5,0.80648]
[1750911902570,0.80648,2478.6,2478.5,6.572]
[1750911903373,0.80645,2478.7,2478.5,6.572]
[1750911903567,0.80645,2478.7,2478.5,7.37849]
[1750911903771,5.4063299,2478.9,2478.6,0.80646]
[1750911903772,0.80642,2478.8,2478.6,0.80646]
[1750911904271,0.6938,2478.9,2478.8,0.80639]
[1750911904459,1.84844647,2478.9,2478.8,0.80639]
[1750911904660,0.6938,2478.9,2478.8,0.80639]
[1750911905265,0.6938,2478.9,2478.7,0.8064]
[1750911905968,0.6938,2478.9,2478.6,4.5255]
[1750911905969,0.6938,2478.9,2478.8,0.80639]
[1750911906156,1.84795478,2478.9,2478.8,0.80639]
[1750911906763,1.84795478,2478.9,2478.7,0.80641]
[1750911907072,0.6938,2478.9,2478.6,7.37843]
[1750911907262,0.6938,2478.9,2478.7,0.80642]
[1750911907463,0.6938,2478.9,2478.6,7.37844]
[1750911907763,0.6938,2478.9,2478.4,7.3785]
[1750911907764,1.15425191,2478.8,2478.4,7.3785]
[1750911907968,2.58865191,2478.7,2478.4,7.3785]
[1750911908171,2.93883,2478.7,2478.3,6.572]
[1750911908564,2.93883,2478.7,2478.2,4.01437]
[1750911908767,4.01426,2478.6,2478.3,6.572]
[1750911909079,5.44866,2478.6,2478.3,6.572]
[1750911909276,0.6989,2478.5,2478.3,6.572]
[1750911910075,0.6989,2478.5,2478.4,0.80652]
[1750911910375,0.6989,2478.5,2478.3,7.37855]
[1750911911078,0.6989,2478.5,2478.3,6.572]
[1750911911371,1.50541,2478.5,2478.3,6.572]
[1750911911671,0.80653,2478.4,2478.2,3.2078]
[1750911912177,1.4109,2478.4,2478.2,3.2078]
[1750911914271,2.21743,2478.4,2478.2,3.2078]
[1750911914475,2.21743,2478.4,2478.0,8.07633]
[1750911915371,1.96378574,2478.3,2478.0,6.572]
[1750911915571,2.14326,2478.3,2478.0,6.572]
[1750911916878,5.35106,2478.3,2478.0,6.572]
[1750911917577,0.8066,2478.2,2477.8,0.8067]
[1750911917776,4.5445,2478.3,2477.7,3.8762]
[1750911917777,0.80668,2478.0,2477.7,3.8762]
[1750911918076,0.80673,2477.8,2477.5,6.568]
[1750911918280,0.80678,2477.6,2477.2,6.568]
[1750911918582,0.80678,2477.6,2477.1,10.58273]
[1750911918778,2.20048,2477.6,2477.1,10.58273]
[1750911918970,1.3937,2477.6,2477.2,0.8069]
[1750911919171,2.20049,2477.6,2477.2,0.8069]
[1750911919879,0.80683,2477.5,2477.1,10.58273]
[1750911920084,1.51323,2477.5,2477.1,10.58273]
[1750911920388,0.80686,2477.4,2477.1,6.568]
[1750911920680,2.14906,2477.4,2477.1,6.568]
[1750911920877,0.6654,2477.3,2477.1,6.568]
[1750911921081,0.6654,2477.3,2477.1,7.37494]
[1750911921281,0.6654,2477.3,2477.1,6.568]
[1750911921482,0.6654,2477.3,2477.1,7.37493]
[1750911921977,0.6654,2477.3,2477.1,6.568]
[1750911922177,0.6654,2477.3,2477.1,7.37494]
[1750911922378,0.6654,2477.3,2477.1,6.568]
[1750911923285,0.6654,2477.3,2477.1,7.37494]
[1750911924383,0.6654,2477.3,2477.1,6.568]
[1750911924779,0.6654,2477.3,2477.1,7.37493]
[1750911924979,0.6654,2477.3,2477.2,0.80692]
[1750911925182,0.6654,2477.3,2477.1,7.37493]
[1750911926486,0.6654,2477.3,2477.2,0.80692]
[1750911926675,0.6654,2477.3,2477.1,7.37493]
[1750911927489,0.6654,2477.3,2477.1,6.568]
[1750911927985,0.6654,2477.3,2477.1,7.37495]
[1750911928183,0.6654,2477.3,2477.2,0.80692]
[1750911928389,3.2078,2477.7,2477.6,0.80679]
[1750911928784,3.2078,2477.7,2477.5,0.8068]
[1750911929489,3.2078,2477.7,2477.6,0.80679]
[1750911930089,3.2078,2477.7,2477.5,0.8068]
[1750911930486,3.2078,2477.7,2477.6,0.80679]
[1750911930689,0.6583,2478.0,2477.8,0.8067]
[1750911931191,0.6583,2478.0,2477.4,9.15101485]
[1750911931383,1.3244,2477.9,2477.6,0.80678]
[1750911931579,1.3244,2477.9,2477.4,9.15101485]
[1750911931580,2.13109,2477.9,2477.4,7.37684]
[1750911932095,3.2078,2477.8,2477.4,7.37684]
[1750911932303,3.2078,2477.8,2477.5,0.80681]
[1750911932589,3.2078,2477.8,2477.4,7.37683]
[1750911932792,3.2078,2477.8,2477.4,8.68353]
[1750911932989,3.2078,2477.8,2477.4,7.8767]
[1750911933689,3.2078,2477.8,2477.4,8.68355]
[1750911934687,3.2078,2477.8,2477.4,7.8767]
[1750911934881,3.2078,2477.8,2477.4,8.68354]
[1750911937600,3.2078,2477.8,2477.5,0.80682]
[1750911937983,3.2078,2477.8,2477.5,2.21732]
[1750911938896,3.2078,2477.8,2477.6,0.80677]
[1750911939191,3.2078,2477.8,2477.5,1.4105]
[1750911939398,3.2078,2477.8,2477.6,0.80678]
[1750911939606,3.2078,2477.8,2477.7,0.80675]
[1750911939789,4.36349211,2477.8,2477.7,0.80675]
[1750911940500,9.7778,2478.2,2477.9,0.80667]
[1750911940696,1.15621884,2478.1,2477.8,0.8067]
[1750911940898,1.15621884,2478.0,2477.8,0.8067]
[1750911941198,0.6774,2478.1,2477.8,2.2204]
[1750911941389,1.15666904,2478.0,2477.8,2.2204]
[1750911941693,0.6774,2478.1,2477.9,0.80668]
[1750911941887,1.15666285,2478.0,2477.9,1.4137]
[1750911942089,1.15666285,2478.0,2477.7,2.15582]
[1750911942294,1.15666285,2477.9,2477.8,0.80672]
[1750911942493,1.15666285,2478.0,2477.8,0.80672]
[1750911942703,1.15666285,2478.0,2477.8,0.8067]
[1750911942898,1.15666285,2478.0,2477.8,2.2204]
[1750911943287,1.15666285,2478.0,2477.8,1.4137]
[1750911943498,1.15666285,2478.0,2477.4,12.35881485]
[1750911943499,3.2078,2477.9,2477.5,2.22051]
[1750911943696,1.15666285,2477.8,2477.5,2.22051]
[1750911943893,4.0145,2477.9,2477.5,1.4137]
[1750911944196,1.15626593,2477.8,2477.5,1.4137]
[1750911944393,1.15626593,2477.7,2477.5,1.4137]
[1750911944589,1.81896593,2477.7,2477.4,3.2078]
[1750911944789,0.6627,2477.7,2477.4,3.2078]
[1750911944990,0.6627,2477.7,2477.4,4.01465]
[1750911945300,1.15697082,2477.6,2477.4,4.01465]
[1750911945500,4.0146,2477.6,2477.2,2.7673]
[1750911945695,4.54470852,2477.5,2477.2,0.6745]
[1750911945894,1.15685367,2477.4,2477.2,0.6745]
[1750911946091,3.38785485,2477.5,2477.2,0.6745]
[1750911946296,3.2078,2477.3,2477.0,6.57]
[1750911946495,1.15680705,2477.2,2477.0,6.57]
[1750911946696,1.86710705,2477.2,2477.0,6.57]
[1750911946895,1.15680705,2477.1,2477.0,6.57]
[1750911947106,1.15680705,2477.1,2476.7,3.2078]
[1750911947298,3.2078,2476.8,2476.2,0.80722]
[1750911947505,4.5449319,2476.7,2476.2,2.7777]
[1750911947695,3.2078,2476.5,2476.2,2.7777]
[1750911947895,1.15680705,2476.4,2476.2,2.0771]
[1750911948302,1.15680705,2476.4,2475.9,7.2937]
[1750911948505,1.15680705,2476.4,2476.0,2.0769]
[1750911948808,1.15680705,2476.4,2476.1,0.80727]
[1750911949104,1.15680705,2476.4,2476.1,3.2078]
[1750911949303,1.15680705,2476.4,2476.2,1.3659]
[1750911949501,3.2078,2476.5,2476.3,2.58101485]
[1750911949710,3.2078,2476.5,2476.4,2.20938]
[1750911950096,0.668,2477.0,2476.7,0.80707]
[1750911950296,0.668,2477.0,2476.8,2.20925]
[1750911950495,0.668,2477.0,2476.9,0.80701]
[1750911950701,1.15585124,2477.0,2476.9,2.20921]
[1750911950907,1.15585977,2477.0,2476.9,1.4022]
[1750911951106,1.15585977,2477.0,2476.8,0.80703]
[1750911951297,3.2078,2477.1,2476.8,0.80703]
[1750911951498,1.15581502,2477.0,2476.8,0.80703]
[1750911951708,3.2078,2477.1,2476.8,0.80703]
[1750911951908,1.15572373,2477.0,2476.8,0.80703]
[1750911952207,3.2078,2477.1,2476.8,0.80703]
[1750911952410,1.15554263,2477.0,2476.8,0.80703]
[1750911952608,3.2078,2477.1,2476.9,0.80701]
[1750911952805,1.15557024,2477.0,2476.9,0.80701]
[1750911953110,3.2078,2477.1,2476.9,0.807]
[1750911954109,3.2078,2477.1,2477.0,0.80698]
[1750911954309,4.3634698,2477.1,2477.0,0.80698]
[1750911954716,3.2078,2477.1,2477.0,0.80698]
[1750911955412,0.668,2477.4,2477.2,0.80691]
[1750911955609,1.15607028,2477.3,2477.2,0.80691]
[1750911957520,1.15607028,2477.3,2477.1,1.52303]
[1750911957706,0.668,2477.4,2477.1,1.52303]
[1750911958016,1.15606835,2477.3,2477.1,1.52303]
[1750911958222,0.668,2477.4,2477.2,0.80692]
[1750911958411,1.15621008,2477.3,2477.1,1.52303]
[1750911958716,0.668,2477.4,2477.1,1.52303]
[1750911958912,0.668,2477.4,2477.2,0.80691]
[1750911958913,1.15578054,2477.3,2477.2,0.80691]
[1750911959122,0.668,2477.4,2477.2,0.80691]
[1750911959321,0.668,2477.4,2477.3,0.80688]
[1750911959707,9.7708,2477.8,2477.2,5.3243]
[1750911959911,1.87743956,2477.7,2477.4,0.80684]
[1750911960114,1.15583956,2477.6,2477.4,0.80684]
[1750911960512,1.15583956,2477.6,2477.3,2.24656]
[1750911961218,1.15583956,2477.6,2477.3,0.80686]
[1750911962419,1.15583956,2477.6,2477.2,4.6915]
[1750911963221,1.15583956,2477.6,2477.2,3.8846]
[1750911963419,1.15583956,2477.6,2477.4,0.80683]
[1750911963620,1.15583956,2477.6,2477.3,0.80686]
[1750911964022,1.15583956,2477.6,2477.2,5.2291]
[1750911964220,1.15583956,2477.6,2477.3,2.15136]
[1750911964417,1.15583956,2477.6,2477.3,1.3445]
[1750911964720,1.15583956,2477.6,2477.3,0.80688]
[1750911964921,2.46423956,2477.6,2477.4,0.80685]
[1750911965109,1.15583956,2477.5,2477.4,0.80685]
[1750911965517,1.15583956,2477.6,2477.3,0.80686]
[1750911967123,1.15583956,2477.6,2477.2,3.8846]
[1750911967323,3.27103956,2477.6,2477.2,3.2078]
[1750911967527,1.15583956,2477.5,2477.2,4.0147]
[1750911967821,1.15583956,2477.5,2477.2,3.2078]
[1750911968319,0.7216,2477.7,2477.4,0.80684]
[1750911968517,1.15773324,2477.6,2477.4,0.80684]
[1750911968724,0.7216,2477.7,2477.4,0.80684]
[1750911968919,1.15773784,2477.6,2477.4,0.80684]
[1750911969121,0.8068,2477.6,2477.3,2.758]
[1750911969320,1.96456831,2477.5,2477.2,3.2078]
[1750911969521,1.15773831,2477.4,2477.2,3.2078]
[1750911969723,1.87323831,2477.4,2477.2,3.2078]
[1750911969922,0.6653,2477.3,2477.2,3.2078]
[1750911970927,0.6653,2477.3,2477.2,4.01472]
[1750911971124,1.52226,2477.7,2477.3,0.80687]
[1750911971428,0.80682,2477.5,2477.2,3.2078]
[1750911971628,1.15821955,2477.4,2477.2,3.2078]
[1750911971932,1.96506955,2477.4,2477.2,3.2078]
[1750911972228,0.6653,2477.3,2477.2,3.2078]
[1750911973421,1.82421571,2477.3,2477.2,4.01472]
[1750911973931,1.82421571,2477.3,2477.2,3.2078]
[1750911975726,1.82421571,2477.3,2477.2,4.01472]
[1750911976128,1.15891571,2477.3,2477.2,6.59589571]
[1750911976328,0.712,2477.6,2477.3,0.80688]
[1750911976528,1.15954891,2477.5,2477.3,0.80688]
[1750911976724,1.15954891,2477.4,2477.2,6.59587571]
[1750911976932,1.15954891,2477.3,2477.2,4.0147]
[1750911977832,1.5188,2477.6,2477.3,0.80688]
[1750911978033,1.15957701,2477.5,2477.3,0.80688]
[1750911978229,1.15957701,2477.4,2477.3,0.80688]
[1750911978534,1.15957701,2477.5,2477.3,0.80688]
[1750911978834,1.15957701,2477.4,2477.2,4.0147]
[1750911979035,1.15957701,2477.3,2477.2,4.0147]
[1750911979232,1.51879,2477.6,2477.3,0.80688]
[1750911979535,1.16114112,2477.5,2477.3,0.80688]
[1750911979735,1.16114112,2477.4,2477.2,3.2078]
[1750911980033,1.16114112,2477.4,2477.2,4.01471]
[1750911980233,1.16114112,2477.3,2477.2,4.01471]
[1750911980828,1.16114112,2477.3,2477.2,3.2078]